bitfinex-derivatives/quotes_BNBF0:USTF0_20250211
["timestamp","ask_amount","ask_price","bid_price","bid_amount"]
[1739297123126,0.31670625,631.5,630.25,0.29113328]
[1739297124129,0.31670625,631.5,630.26,0.31732935]
[1739297124431,0.31670625,631.5,630.27,0.29113328]
[1739297124631,0.31670625,631.5,630.28,0.31731928]
[1739297124834,0.31670625,631.5,630.29,0.29113328]
[1739297125028,0.31670625,631.5,630.3,0.31730921]
[1739297125233,0.31670625,631.5,630.31,0.29113328]
[1739297125433,0.31670625,631.5,630.31,0.60843746]
[1739297125629,0.31670625,631.5,630.32,0.29113328]
[1739297128141,0.27431507,631.49,630.32,0.29113328]
[1739297128339,0.31670625,631.5,630.32,0.29113328]
[1739297128539,0.27432952,631.49,630.32,0.29113328]
[1739297128935,6.02359105,631.48,630.32,0.29113328]
[1739297129136,0.31672631,631.46,630.32,0.29113328]
[1739297129340,0.27432952,631.45,630.32,0.29113328]
[1739297129540,2.40306189,631.45,630.32,0.29113328]
[1739297129735,0.31674136,631.43,630.32,0.29113328]
[1739297129940,0.27432952,631.42,629.74,0.61408834]
[1739297130143,0.31675641,631.4,630.04,1.18253121]
[1739297130343,0.27432952,631.39,630.05,0.29129538]
[1739297131141,0.31676644,631.38,630.05,0.29129538]
[1739297133141,0.31676644,631.38,630.04,1.18253121]
[1739297133142,0.31676644,631.38,630.06,0.29127772]
[1739297133344,0.31676644,631.38,630.05,0.29127772]
[1739297133646,0.31676644,631.38,630.06,0.29127772]
[1739297133844,0.31676644,631.38,629.75,0.31758634]
[1739297133845,0.31676644,631.38,630.07,0.31742504]
[1739297134040,0.31676644,631.38,630.08,0.29127772]
[1739297134744,0.31676644,631.38,630.07,0.31742504]
[1739297134944,0.31676644,631.38,630.08,0.29118243]
[1739297135245,0.31676644,631.38,630.09,0.6085974]
[1739297135745,0.31676644,631.38,630.1,1.22264606]
[1739297135942,0.31676644,631.38,630.11,0.60858732]
[1739297136137,0.31676644,631.38,630.12,1.22263599]
[1739297136344,0.31676644,631.38,630.13,1.22263095]
[1739297136537,0.31676644,631.38,630.14,0.31738978]
[1739297136846,0.31676644,631.38,630.15,0.29116395]
[1739297137244,0.31676644,631.38,630.16,0.29116395]
[1739297137639,3.89448234,631.81,630.17,0.29116395]
[1739297137836,0.31655587,631.8,630.17,0.29116395]
[1739297138139,0.31655587,631.8,630.18,0.29116395]
[1739297138345,0.31655587,631.8,630.19,0.29116395]
[1739297138647,0.31655587,631.8,630.22,1.18253121]
[1739297138839,0.31655587,631.8,630.23,1.22252738]
[1739297139043,0.31655587,631.8,630.24,1.22252234]
[1739297139241,0.31655587,631.8,630.25,0.90518292]
[1739297139444,0.31655587,631.8,630.26,0.6084933]
[1739297139648,0.31655587,631.8,630.27,0.60848827]
[1739297139948,0.27412633,631.79,630.28,1.2225022]
[1739297140145,0.31655587,631.8,630.28,0.31731928]
[1739297140345,0.27411137,631.78,630.29,0.90508568]
[1739297140544,6.29732608,631.77,630.3,0.90508568]
[1739297140744,6.29732608,631.76,630.31,0.90508568]
[1739297140945,0.31655587,631.8,630.28,0.31731928]
[1739297140946,6.29732608,631.75,630.29,0.29113171]
[1739297141145,6.29732608,631.74,630.3,0.29113171]
[1739297141341,0.31655587,631.8,630.3,0.29113171]
[1739297141342,6.29732608,631.73,630.31,0.29113171]
[1739297141548,6.29732608,631.72,630.32,0.29113171]
[1739297141743,6.33981568,631.71,630.29,0.29113171]
[1739297141948,0.31661099,631.69,630.3,0.2911719]
[1739297142147,0.27413364,631.68,630.31,0.2911719]
[1739297142350,0.27413364,631.68,630.29,0.2911719]
[1739297142555,0.31662102,631.67,630.3,0.2911719]
[1739297142744,0.27413364,631.66,630.31,0.2911719]
[1739297142951,0.31663104,631.65,630.32,0.2911719]
[1739297143151,0.27413364,631.64,630.29,0.2911719]
[1739297143350,0.27413364,631.64,630.3,0.2911719]
[1739297143646,0.27413364,631.64,630.31,0.2911719]
[1739297143950,0.31664107,631.63,630.31,0.2911719]
[1739297144145,0.27413364,631.62,630.32,0.2911719]
[1739297144347,0.31665109,631.61,630.29,0.2911719]
[1739297144543,0.31665109,631.61,630.33,0.2911719]
[1739297144745,0.31665109,631.61,630.34,0.2911719]
[1739297144948,0.31665109,631.61,630.29,0.2911719]
[1739297145449,0.27425429,631.6,630.29,0.2911719]
[1739297145750,0.31666112,631.59,630.29,0.2911719]
[1739297145950,0.27425734,631.58,630.29,0.2911719]
[1739297146149,0.31667115,631.57,630.29,0.2911719]
[1739297146747,0.27420485,631.56,630.29,0.2911719]
[1739297147152,0.31668118,631.55,630.29,0.2911719]
[1739297147352,0.27419949,631.54,630.3,0.29124066]
[1739297147545,0.27419949,631.54,630.29,0.29124066]
[1739297147749,0.27419949,631.54,630.3,0.29124066]
[1739297147951,0.27419949,631.54,630.29,0.29124066]
[1739297148150,0.27419949,631.54,630.3,0.29124066]
[1739297148451,0.27419949,631.54,630.31,0.29124066]
[1739297148651,0.27419949,631.54,630.29,0.29124066]
[1739297148952,0.31668118,631.55,630.28,0.31731928]
[1739297149150,0.27418408,631.54,630.29,0.29122334]
[1739297149550,0.31669121,631.53,630.29,0.29122334]
[1739297149746,0.31669121,631.53,630.3,0.29122588]
[1739297149747,0.27413615,631.52,630.3,0.29122588]
[1739297149948,0.31670123,631.51,630.29,0.29122588]
[1739297150152,0.31670123,631.51,630.3,0.29122588]
[1739297150352,0.31670123,631.51,630.28,0.31731928]
[1739297150652,0.31670123,631.51,630.29,0.29127544]
[1739297150845,0.27406464,631.5,629.99,0.29129141]
[1739297151047,0.31671628,631.48,629.98,1.18253121]
[1739297151244,0.31671628,631.48,629.99,0.60873642]
[1739297151452,0.31671628,631.48,630.0,0.60873138]
[1739297151647,0.31671628,631.48,630.01,0.29127107]
[1739297151847,0.31671628,631.48,630.02,0.31745023]
[1739297152050,0.31671628,631.48,630.03,0.29127107]
[1739297154751,0.2740494,631.47,630.02,0.31745023]
[1739297154950,0.31673133,631.45,630.03,0.29126168]
[1739297155152,0.2740494,631.44,630.03,0.29126168]
[1739297155354,0.31674638,631.42,630.03,0.29126168]
[1739297155551,0.2740494,631.41,630.03,0.29126168]
[1739297155754,0.31676143,631.39,630.03,0.29126168]
[1739297156053,0.2740494,631.38,630.03,0.29126168]
[1739297156261,0.31677648,631.36,630.03,0.29126168]
[1739297156452,0.2740494,631.35,630.03,0.29126168]
[1739297156651,0.31678651,631.34,630.03,0.29126168]
[1739297159254,0.27406193,631.33,630.03,0.29126168]
[1739297159558,0.31680157,631.31,630.03,0.29126168]
[1739297159758,0.27406193,631.3,630.03,0.29126168]
[1739297160063,0.31681662,631.28,630.03,0.29126168]
[1739297160255,0.27406193,631.27,630.03,0.29126168]
[1739297160560,0.31683168,631.25,630.03,0.29126168]
[1739297160761,0.27406193,631.24,630.03,0.29126168]
[1739297160961,0.31684172,631.23,630.03,0.29126168]
[1739297161755,0.31684172,631.23,630.04,0.29131258]
[1739297161956,0.27386573,631.22,629.55,1.18253121]
[1739297162155,0.31685678,631.2,629.55,1.18253121]
[1739297162360,0.31685678,631.2,629.56,0.29148455]
[1739297162561,0.27386573,631.19,629.65,1.18253121]
[1739297162753,0.27386573,631.19,629.66,0.29148455]
[1739297163560,0.31687184,631.17,629.66,0.29148455]
[1739297164356,0.27367619,631.16,629.65,1.18253121]
[1739297164562,0.3168869,631.14,629.65,1.18253121]
[1739297164862,2.39641988,631.13,629.65,1.18253121]
[1739297165063,2.39641988,631.12,629.65,1.18253121]
[1739297165255,0.31690698,631.1,629.65,1.18253121]
[1739297165456,2.12274369,631.09,629.65,1.18253121]
[1739297165762,0.31692205,631.07,629.65,1.18253121]
[1739297165963,6.27916763,631.06,629.65,1.18253121]
[1739297166163,0.31693711,631.04,629.13,1.18253121]
[1739297166363,2.39641988,631.03,629.14,0.90672843]
[1739297166557,0.31695218,631.01,629.14,0.90672843]
[1739297166761,0.31695218,631.01,629.15,0.29167618]
[1739297166762,2.39641988,631.0,629.15,0.29167618]
[1739297167058,0.31695218,631.01,629.13,1.18253121]
[1739297167266,0.27381988,631.0,629.14,0.90656701]
[1739297167561,0.27381988,631.0,629.15,0.29162252]
[1739297167762,0.31696725,630.98,629.16,0.31788416]
[1739297167959,0.31696725,630.98,629.17,0.29162252]
[1739297168157,0.27381988,630.97,629.17,0.29162252]
[1739297169259,0.27381988,630.97,629.19,0.317869]
[1739297169457,0.31698232,630.95,629.19,0.317869]
[1739297169764,0.31698232,630.95,629.2,0.29153722]
[1739297170063,0.31698232,630.95,629.21,0.29153722]
[1739297170359,0.27396481,630.94,629.22,0.29153722]
[1739297170565,0.27396481,630.94,629.23,0.29153722]
[1739297170759,0.27396481,630.94,629.24,0.29153722]
[1739297170959,0.31698232,630.95,629.25,0.29153722]
[1739297171164,0.31698232,630.95,629.2,0.29153722]
[1739297171364,0.27390921,630.94,629.21,0.29153722]
[1739297171565,0.27390921,630.94,629.2,0.29153722]
[1739297173163,2.1085053,630.93,629.2,0.29153722]
[1739297173363,6.23892941,630.92,629.21,0.29153722]
[1739297173563,0.31700744,630.9,629.22,0.29170009]
[1739297173864,0.27375146,630.89,629.23,0.29170009]
[1739297174163,0.31702252,630.87,629.24,0.29170009]
[1739297174466,0.27375146,630.86,629.25,0.29170009]
[1739297174766,0.3170376,630.84,629.26,0.29170009]
[1739297174966,0.27375146,630.83,629.27,0.29170009]
[1739297175168,0.31705267,630.81,629.2,0.29170009]
[1739297175367,0.27375146,630.8,629.2,0.29170009]
[1739297175568,0.31706775,630.78,629.2,0.29170009]
[1739297175868,0.27375146,630.77,629.2,0.29170009]
[1739297176067,0.31708283,630.75,629.2,0.29170009]
[1739297176268,0.27375146,630.74,629.2,0.29170009]
[1739297176570,0.31708283,630.75,629.2,0.29170009]
[1739297177470,0.27353436,630.74,628.48,1.65727439]
[1739297177661,0.31714317,630.63,628.5,0.31821797]
[1739297178063,0.27346688,630.62,628.51,0.29183549]
[1739297178369,0.27346688,630.62,628.53,0.31820279]
[1739297178563,0.27346688,630.62,628.54,0.29183549]
[1739297178764,0.31715826,630.6,628.56,0.3181876]
[1739297178970,0.27346688,630.59,628.57,0.29183549]
[1739297179170,0.27346688,630.59,628.58,0.29183549]
[1739297179472,0.27346688,630.59,628.59,0.29183549]
[1739297179870,0.31717335,630.57,628.61,0.31816229]
[1739297180074,0.27346688,630.56,628.62,0.29183549]
[1739297180274,0.27346688,630.56,628.61,0.31816229]
[1739297180275,0.27346688,630.56,628.64,0.31814711]
[1739297180474,0.31718844,630.54,628.65,0.29183549]
[1739297180777,0.27346688,630.53,628.67,0.31813192]
[1739297180975,0.31720353,630.51,628.68,0.29183549]
[1739297181176,0.27346688,630.5,628.7,0.31811674]
[1739297181376,0.31721862,630.48,628.71,0.29183549]
[1739297181577,0.31721862,630.48,628.73,0.31810156]
[1739297181876,0.31721862,630.48,628.74,0.29183549]
[1739297182070,0.31721862,630.48,628.76,0.31808639]
[1739297182275,0.27357581,630.47,628.77,0.29183549]
[1739297182476,0.27357581,630.47,628.78,0.60991176]
[1739297182672,0.27357581,630.47,628.79,0.29183549]
[1739297182877,0.27357581,630.47,628.8,0.29183549]
[1739297183076,0.27357581,630.47,628.78,0.31807627]
[1739297183077,0.27357581,630.47,628.81,0.29183549]
[1739297183273,0.27357581,630.47,628.82,0.29183549]
[1739297183473,0.27357581,630.47,628.83,0.29183549]
[1739297183678,0.27357581,630.47,628.84,0.29183549]
[1739297183872,0.27357581,630.47,628.85,0.29183549]
[1739297184078,0.27357581,630.47,628.86,0.29183549]
[1739297184279,0.31723372,630.45,628.87,0.29183549]
[1739297184473,0.27357581,630.44,628.88,0.60986118]
[1739297184677,0.31723372,630.45,628.89,0.29183549]
[1739297184878,0.31723372,630.45,628.88,0.31802569]
[1739297185073,0.31723372,630.45,628.89,0.29172861]
[1739297185686,0.31723372,630.45,628.9,0.31801558]
[1739297185876,0.31723372,630.45,628.91,0.29172861]
[1739297186081,0.31723372,630.45,628.92,0.31800546]
[1739297186284,0.31723372,630.45,628.93,0.29172861]
[1739297186481,0.31723372,630.45,628.94,0.31799535]
[1739297186784,0.31723372,630.45,628.95,0.29172861]
[1739297186981,0.31723372,630.45,628.96,0.31798524]
[1739297187284,0.31723372,630.45,628.97,0.29172861]
[1739297187686,0.31723372,630.45,628.98,0.29172861]
[1739297187889,0.31723372,630.45,628.99,0.29172861]
[1739297188090,0.31723372,630.45,629.0,0.29172861]
[1739297188388,0.31723372,630.45,629.01,0.29172861]
[1739297188582,0.31723372,630.45,629.02,0.29172861]
[1739297188787,0.31723372,630.45,629.03,0.29172861]
[1739297188987,0.31723372,630.45,629.04,0.29172861]
[1739297189189,0.31723372,630.45,629.05,0.29172861]
[1739297189487,0.31723372,630.45,629.06,0.29172861]
[1739297189688,0.31723372,630.45,629.07,0.29172861]
[1739297189989,0.31723372,630.45,629.08,0.29172861]
[1739297190187,0.31723372,630.45,629.09,0.31791953]
[1739297190490,0.31723372,630.45,629.1,0.29172861]
[1739297190686,0.31723372,630.45,629.11,0.31790942]
[1739297190882,0.31723372,630.45,629.12,0.29172861]
[1739297191083,0.31723372,630.45,629.13,0.31789932]
[1739297191285,0.31723372,630.45,629.14,0.29172861]
[1739297191484,0.31723372,630.45,629.15,0.31788921]
[1739297191689,0.31723372,630.45,629.16,0.29172861]
[1739297192188,0.31723372,630.45,629.15,0.31788921]
[1739297192383,0.31723372,630.45,629.17,0.29172861]
[1739297192586,0.31723372,630.45,629.18,0.29172861]
[1739297192789,0.31723372,630.45,629.16,0.29172861]
[1739297192983,0.27393772,630.44,629.17,0.29172861]
[1739297193287,0.31724881,630.42,629.18,0.29172861]
[1739297193588,0.27393772,630.41,629.19,0.29172861]
[1739297193890,0.27393772,630.41,629.16,0.29172861]
[1739297194189,0.31726391,630.39,629.17,0.29172861]
[1739297194389,0.27393772,630.38,628.75,0.29172861]
[1739297194591,0.31727901,630.36,628.76,0.609815]
[1739297194784,0.27393772,630.35,628.77,0.90703685]
[1739297194989,0.31729411,630.33,628.78,0.60980488]
[1739297195187,0.31729411,630.33,628.79,1.22510806]
[1739297195385,0.27391995,630.32,628.8,0.29172861]
[1739297195786,0.27390309,630.31,628.81,0.29184591]
[1739297195986,0.27390309,630.32,628.82,0.29184591]
[1739297196192,0.27390309,630.31,628.83,0.29184591]
[1739297196492,0.31729411,630.33,628.83,0.29184591]
[1739297196493,0.27390309,630.3,628.83,0.29184591]
[1739297196690,0.27390309,630.32,628.8,0.29184591]
[1739297196889,0.31729411,630.33,628.81,0.29184591]
[1739297197092,0.27402864,630.32,628.82,0.29184591]
[1739297197291,0.27402864,630.32,628.83,0.29184591]
[1739297197495,0.31729411,630.33,628.84,0.2918246]
[1739297197690,0.2740707,630.32,628.8,0.2918246]
[1739297197992,0.31730921,630.3,628.79,0.31807121]
[1739297198193,0.31730921,630.3,628.8,0.2918246]
[1739297198487,0.31730921,630.3,628.81,0.60988569]
[1739297198691,0.31730921,630.3,628.82,0.60988064]
[1739297198891,0.31730921,630.3,628.83,0.90717229]
[1739297199091,0.31730921,630.3,628.84,0.90717229]
[1739297199295,0.31730921,630.3,628.83,0.2918246]
[1739297199493,0.31730921,630.3,628.84,0.2918246]
[1739297199994,0.31730921,630.3,628.85,0.2918246]
[1739297200492,0.31730921,630.3,628.82,0.31805604]
[1739297200693,0.31730921,630.3,628.83,0.2918246]
[1739297202892,0.31730921,630.3,628.82,0.31805604]
[1739297203098,0.31730921,630.3,628.83,0.29181711]
[1739297204593,0.27404191,630.29,628.83,0.29181711]
[1739297204795,0.31732432,630.27,628.83,0.29181711]
[1739297206294,0.27392874,630.26,628.83,0.29181711]
[1739297206495,0.31733942,630.24,628.84,0.29181711]
[1739297206695,0.31733942,630.24,628.66,0.29181711]
[1739297206696,0.27392874,630.23,628.66,0.29181711]
[1739297206895,0.31735453,630.21,628.67,0.29181711]
[1739297207101,0.27392874,630.2,628.66,0.29181711]
[1739297207296,0.31736964,630.18,628.67,0.29181711]
[1739297207501,0.27392874,630.17,628.68,0.29181711]
[1739297207799,0.31738474,630.15,628.51,0.29181711]
[1739297208003,0.27392874,630.14,628.52,0.29181711]
[1739297208202,0.27384365,630.13,628.53,0.29202045]
[1739297208401,0.27384365,630.14,628.51,0.90777709]
[1739297208597,0.31739986,630.12,628.52,0.29202045]
[1739297208802,0.27384365,630.11,628.53,0.29202045]
[1739297209102,0.31741497,630.09,628.54,0.29202045]
[1739297209303,0.27384365,630.08,628.51,0.29202045]
[1739297209605,0.31743008,630.06,628.52,0.29202045]
[1739297209903,0.27384365,630.05,628.53,0.29202045]
[1739297210204,0.3174452,630.03,628.54,0.29202045]
[1739297210399,0.27384365,630.02,628.55,0.29202045]
[1739297210603,0.31746031,630.0,628.5,1.18253121]
[1739297210805,0.27382962,629.99,628.51,0.2920217]
[1739297211004,0.31747543,629.97,628.18,0.90777168]
[1739297211203,0.27382962,629.96,628.19,0.61039671]
[1739297211399,0.27382962,629.96,628.2,0.61039164]
[1739297211606,0.31749055,629.94,628.21,0.31836487]
[1739297211807,0.27382962,629.93,628.22,0.2920217]
[1739297212007,0.31750567,629.91,628.23,0.61037644]
[1739297212205,0.31750567,629.91,628.24,0.31834967]
[1739297212405,0.31750567,629.91,628.25,0.2920217]
[1739297212600,0.31750567,629.91,628.26,0.31833954]
[1739297212803,0.31750567,629.91,628.27,0.2920217]
[1739297213005,0.31750567,629.91,628.28,0.6103511]
[1739297213205,0.31750567,629.91,628.29,1.22609602]
[1739297213406,0.31750567,629.91,628.3,0.61034097]
[1739297213605,0.31750567,629.91,628.31,0.6103359]
[1739297213802,0.31750567,629.91,628.32,0.61033084]
[1739297214005,0.31750567,629.91,628.33,0.61032577]
[1739297214207,0.31750567,629.91,628.34,0.61032071]
[1739297214406,0.31750567,629.91,628.35,0.61031564]
[1739297214612,0.31750567,629.91,628.36,0.61031057]
[1739297214909,0.31750567,629.91,628.37,0.61030551]
[1739297215108,0.31750567,629.91,628.38,0.61030044]
[1739297215309,0.31750567,629.91,628.39,0.31827368]
[1739297215604,0.31750567,629.91,628.4,0.2920217]
[1739297215809,0.31750567,629.91,628.41,0.31826355]
[1739297216009,0.31750567,629.91,628.42,0.2920217]
[1739297216207,0.31750567,629.91,628.43,0.31825342]
[1739297216411,0.31750567,629.91,628.44,0.2920217]
[1739297216608,0.31750567,629.91,628.45,0.31824329]
[1739297216909,0.31750567,629.91,628.46,0.2920217]
[1739297217109,0.31750567,629.91,628.47,0.31823316]
[1739297217300,0.31750567,629.91,628.48,0.2920217]
[1739297217505,0.31750567,629.91,628.49,0.31822304]
[1739297217703,0.31750567,629.91,628.5,0.2920217]
[1739297217908,0.31750567,629.91,628.51,0.31821291]
[1739297218104,0.31750567,629.91,628.52,0.2920217]
[1739297218905,0.31750567,629.91,628.52,0.61022955]
[1739297219109,0.31750567,629.91,628.53,0.61022449]
[1739297219309,0.31750567,629.91,628.54,0.61021942]
[1739297219613,0.31750567,629.91,628.55,0.61009436]
[1739297219808,0.31750567,629.91,628.56,0.6100893]
[1739297220013,0.31750567,629.91,628.57,0.61008424]
[1739297220213,0.31750567,629.91,628.58,0.61007917]
[1739297220407,0.31750567,629.91,628.59,0.2919017]
[1739297221820,0.31750567,629.91,628.6,0.31816735]
[1739297222011,0.31750567,629.91,628.6,0.61001434]
[1739297222212,0.31750567,629.91,628.61,1.22540605]
[1739297222416,0.31750567,629.91,628.62,0.29184699]
[1739297222617,0.31750567,629.91,628.61,0.31816229]
[1739297222819,0.31750567,629.91,628.62,0.29184699]
[1739297223121,0.31750567,629.91,628.63,0.29184699]
[1739297223321,0.31750567,629.91,628.64,0.29184699]
[1739297223516,0.31750567,629.91,628.65,0.60998904]
[1739297223720,0.31750567,629.91,628.66,0.31813698]
[1739297223919,0.31750567,629.91,628.67,0.29184699]
[1739297224120,0.31750567,629.91,628.68,0.29184699]
[1739297224321,0.31750567,629.91,628.69,0.29184699]
[1739297224522,0.31750567,629.91,628.7,0.31811674]
[1739297224723,0.31750567,629.91,628.71,0.29184699]
[1739297224923,0.31750567,629.91,628.72,0.29184699]
[1739297225118,0.31750567,629.91,628.73,0.29184699]
[1739297225322,0.31750567,629.91,628.7,0.31811674]
[1739297225527,0.31750567,629.91,628.71,0.29175262]
[1739297225723,0.31750567,629.91,628.72,0.60985924]
[1739297226024,5.95202591,630.74,628.73,0.29175262]
[1739297226219,0.31709791,630.72,628.75,0.31809145]
[1739297226419,0.27416766,630.71,628.76,0.29175262]
[1739297226621,0.27416766,630.71,628.75,0.31809145]
[1739297226622,0.27416766,630.71,628.77,0.29175262]
[1739297226822,0.27416766,630.71,628.78,0.29175262]
[1739297227124,0.27416766,630.71,628.79,0.29175262]
[1739297227327,0.27416766,630.71,628.8,0.29175262]
[1739297227524,0.27416766,630.71,628.81,0.60981371]
[1739297227724,0.27416766,630.71,628.82,0.60980866]
[1739297227924,0.27416766,630.71,628.82,0.31805604]
[1739297228126,0.27416766,630.71,628.83,0.29175262]
[1739297229022,0.317113,630.69,628.84,0.29178712]
[1739297229227,0.27424237,630.68,628.85,0.29178712]
[1739297229428,0.31712808,630.66,628.86,0.29178712]
[1739297229628,6.26711843,630.65,628.87,0.29178712]
[1739297229828,0.31714317,630.63,628.83,0.29178712]
[1739297230028,0.27424237,630.62,628.84,0.29178712]
[1739297230229,0.27424237,630.62,628.83,0.29178712]
[1739297230230,0.31715826,630.6,628.83,0.29178712]
[1739297230429,0.27424237,630.59,628.84,0.29178712]
[1739297230628,0.31717335,630.57,628.85,0.29178712]
[1739297230828,0.27424237,630.56,628.86,0.29178712]
[1739297231024,0.31718844,630.54,628.87,0.29178712]
[1739297231224,0.27424237,630.53,628.88,0.29178712]
[1739297231527,0.31720353,630.51,628.83,0.29178712]
[1739297231728,0.27424237,630.5,628.84,0.29178712]
[1739297231929,0.31721862,630.48,628.83,0.29178712]
[1739297232224,0.27424237,630.47,628.84,0.29178712]
[1739297232428,0.27424237,630.47,628.83,0.29178712]
[1739297232629,0.27424237,630.47,628.84,0.29178712]
[1739297232824,0.27424237,630.47,628.85,0.29178712]
[1739297233025,0.27424237,630.47,628.83,0.29178712]
[1739297233226,0.31723372,630.45,628.84,0.29178712]
[1739297233425,0.27424237,630.44,628.83,0.29178712]
[1739297233625,0.27424237,630.44,628.84,0.29178712]
[1739297233825,0.27424237,630.44,628.83,0.29178712]
[1739297234024,0.27424237,630.44,628.84,0.29178712]
[1739297234426,0.27424237,630.44,628.85,0.29178712]
[1739297234729,0.27424237,630.44,628.83,0.29178712]
[1739297234930,0.27424237,630.44,628.84,0.29178712]
[1739297235127,0.31724881,630.42,628.83,0.29178712]
[1739297235331,0.27424237,630.41,628.84,0.29178712]
[1739297235525,0.27424237,630.41,628.83,0.29178712]
[1739297236130,0.27385286,630.4,628.84,0.29185196]
[1739297236330,0.31724881,630.42,628.83,0.29185196]
[1739297236331,0.27385286,630.41,628.83,0.29185196]
[1739297236633,0.27385286,630.4,628.84,0.29185196]
[1739297237027,0.27385286,630.39,628.85,0.29185196]
[1739297237235,0.27385286,630.41,628.83,0.29185196]
[1739297237432,0.27385286,630.38,628.86,0.29185196]
[1739297237630,0.27385286,630.37,628.87,0.29185196]
[1739297237825,0.31728404,630.35,628.83,0.29185196]
[1739297238833,0.31728404,630.35,628.83,0.60990294]
[1739297239035,0.31728404,630.35,628.84,0.60989788]
[1739297239228,0.31728404,630.35,628.85,0.60989282]
[1739297239432,0.31728404,630.35,628.86,0.60988777]
[1739297239628,0.31728404,630.35,628.87,1.22484102]
[1739297239832,0.31728404,630.35,628.88,0.60972897]
[1739297240034,0.31728404,630.35,628.89,0.31802063]
[1739297240333,0.31728404,630.35,628.9,0.29170328]
[1739297240636,0.31728404,630.35,628.91,0.31801052]
[1739297241133,0.31728404,630.35,628.92,0.29170328]
[1739297241329,0.31728404,630.35,628.94,0.31799535]
[1739297241534,0.31728404,630.35,628.95,0.29170328]
[1739297242234,0.31728404,630.35,628.96,0.29170328]
[1739297242637,0.31728404,630.35,628.95,0.29170328]
[1739297244332,0.31728404,630.35,628.96,0.29170328]
[1739297244629,0.31728404,630.35,628.97,0.29170328]
[1739297244833,0.31728404,630.35,628.98,0.29170328]
[1739297245032,0.31728404,630.35,628.99,0.29170328]
[1739297245335,0.31728404,630.35,629.0,0.29170328]
[1739297245536,0.31728404,630.35,629.01,0.29170328]
[1739297245835,0.31728404,630.35,629.03,0.31794985]
[1739297246033,0.31728404,630.35,629.04,0.29170328]
[1739297246230,0.31728404,630.35,629.05,0.29170328]
[1739297246529,0.31728404,630.35,629.06,0.29170328]
[1739297246734,0.31728404,630.35,629.07,0.29170328]
[1739297247034,0.31728404,630.35,629.09,0.31791953]
[1739297247231,0.31728404,630.35,629.1,0.29170328]
[1739297247430,0.31728404,630.35,629.11,0.29170328]
[1739297247632,0.31728404,630.35,629.12,0.29170328]
[1739297247837,0.31728404,630.35,629.13,0.29170328]
[1739297248033,0.31728404,630.35,629.14,0.29170328]
[1739297248242,0.31728404,630.35,629.15,0.29170328]
[1739297248533,0.31728404,630.35,629.16,0.29170328]
[1739297248731,0.31728404,630.35,629.09,0.31791953]
[1739297248732,0.31728404,630.35,629.17,0.29170328]
[1739297248935,0.31728404,630.35,629.18,0.29170328]
[1739297249136,0.31728404,630.35,629.19,0.29170328]
[1739297249333,0.31728404,630.35,629.2,0.29170328]
[1739297249638,0.31728404,630.35,629.21,0.29170328]
[1739297249937,0.31728404,630.35,629.22,0.29170328]
[1739297250136,0.31728404,630.35,629.18,0.29170328]
[1739297250338,0.31728404,630.35,629.19,0.29170328]
[1739297250532,0.31728404,630.35,629.18,0.29170328]
[1739297250733,0.31728404,630.35,629.19,0.29170328]
[1739297250932,0.31728404,630.35,629.18,0.29170328]
[1739297251134,0.31728404,630.35,629.2,0.29170328]
[1739297251333,0.31728404,630.35,629.21,0.29170328]
[1739297251532,0.31728404,630.35,629.18,0.29170328]
[1739297251733,0.31728404,630.35,629.19,0.29170328]
[1739297252038,0.31728404,630.35,629.2,0.29170328]
[1739297252238,0.31728404,630.35,629.18,0.29170328]
[1739297252440,0.31728404,630.35,629.19,0.29170328]
[1739297252833,0.31728404,630.35,629.2,0.29170328]
[1739297253038,0.31728404,630.35,629.18,0.29170328]
[1739297253234,0.31728404,630.35,629.19,0.29170328]
[1739297253434,0.31728404,630.35,629.18,0.29170328]
[1739297253742,0.31728404,630.35,629.19,0.29170328]
[1739297253940,0.31728404,630.35,629.18,0.29170328]
[1739297254139,0.31728404,630.35,629.19,0.29170328]
[1739297254342,0.31728404,630.35,629.18,0.29170328]
[1739297254642,0.31728404,630.35,629.19,0.29170328]
[1739297254844,0.31728404,630.35,629.18,0.29170328]
[1739297255444,0.27389035,630.34,629.18,0.29170328]
[1739297255646,0.31729914,630.32,629.18,0.29170328]
[1739297255944,0.27389035,630.31,629.19,0.29170328]
[1739297256144,0.31731425,630.29,629.19,0.29170328]
[1739297256446,0.31731425,630.29,629.2,0.29170328]
[1739297256638,0.31731425,630.29,629.21,0.29170328]
[1739297256842,0.31731425,630.29,629.22,0.29170328]
[1739297257040,0.31731425,630.29,629.23,0.29170328]
[1739297257247,0.31731425,630.29,628.68,0.29170328]
[1739297257442,0.31731425,630.29,629.24,0.29170328]
[1739297257639,0.31731425,630.29,629.25,0.29170328]
[1739297257845,0.31731425,630.29,628.72,0.29170328]
[1739297258040,0.31731425,630.29,628.74,0.31809651]
[1739297258344,0.31731425,630.29,628.75,0.29170328]
[1739297258546,0.31731425,630.29,628.77,0.31808133]
[1739297258745,0.31731425,630.29,628.78,0.29170328]
[1739297258946,0.31731425,630.29,628.8,0.31806615]
[1739297259147,0.31731425,630.29,628.81,0.29170328]
[1739297259345,0.31731425,630.29,628.83,0.31805098]
[1739297259546,0.31731425,630.29,628.84,0.29170328]
[1739297259748,0.31731425,630.29,628.86,0.31803581]